[Event "Titled Tuesday Blitz March 07 Early 2023"]
[White "Madaminov, Mukhiddin"]
[Black "Sielecki, Christof"]
[WhiteFideId "14210703"]
[BlackFideId "4620437"]
[WhiteElo "2511"]
[BlackElo "2443"]
[Result "1-0"]
[Round "07"]
[TimeControl "180+2"]
[Date "2023.03.07"]
[WhiteClock "0:00:50"]
[BlackClock "0:00:06"]

1. d4 {[%clk 0:03:00]}  d5 {[%clk 0:02:59]} 2. Nc3 {[%clk 0:03:01]}  Nf6 {[%clk 0:02:58]} 3. Bf4 {[%clk 0:03:02]}  c5 {[%clk 0:02:58]} 4. e4 {[%clk 0:03:02]}  Nxe4 {[%clk 0:02:57]} 5. Nxe4 {[%clk 0:03:02]}  dxe4 {[%clk 0:02:58]} 6. dxc5 {[%clk 0:03:02]}  Qa5+ {[%clk 0:02:58]} 7. c3 {[%clk 0:03:03]}  Qxc5 {[%clk 0:02:58]} 8. Qa4+ {[%clk 0:03:03]}  Nc6 {[%clk 0:02:56]} 9. Qxe4 {[%clk 0:03:03]}  g6 {[%clk 0:02:52]} 10. Nf3 {[%clk 0:03:04]}  Bg7 {[%clk 0:02:52]} 11. Qe3 {[%clk 0:03:04]}  Qxe3+ {[%clk 0:02:50]} 12. Bxe3 {[%clk 0:03:05]}  O-O {[%clk 0:02:41]} 13. O-O-O {[%clk 0:03:05]}  Bf5 {[%clk 0:02:38]} 14. Bd3 {[%clk 0:03:04]}  Bxd3 {[%clk 0:02:37]} 15. Rxd3 {[%clk 0:03:05]}  Rfd8 {[%clk 0:02:38]} 16. Rhd1 {[%clk 0:03:05]}  b6 {[%clk 0:02:11]} 17. Kc2 {[%clk 0:02:54]}  Rxd3 {[%clk 0:02:08]} 18. Rxd3 {[%clk 0:02:54]}  Rd8 {[%clk 0:02:09]} 19. a4 {[%clk 0:02:48]}  Kf8 {[%clk 0:01:56]} 20. Rxd8+ {[%clk 0:02:45]}  Nxd8 {[%clk 0:01:55]} 21. b4 {[%clk 0:02:46]}  Ke8 {[%clk 0:01:54]} 22. Nd2 {[%clk 0:02:39]}  Kd7 {[%clk 0:01:53]} 23. Kd3 {[%clk 0:02:34]}  f5 {[%clk 0:01:50]} 24. g3 {[%clk 0:02:34]}  e5 {[%clk 0:01:49]} 25. f3 {[%clk 0:02:35]}  Nb7 {[%clk 0:01:41]} 26. Nb3 {[%clk 0:02:26]}  e4+ {[%clk 0:01:31]} 27. fxe4 {[%clk 0:02:26]}  fxe4+ {[%clk 0:01:32]} 28. Kc2 {[%clk 0:02:20]}  Ke6 {[%clk 0:01:20]} 29. Nd2 {[%clk 0:01:46]}  Nd6 {[%clk 0:00:59]} 30. Bg1 {[%clk 0:01:34]}  h5 {[%clk 0:00:55]} 31. c4 {[%clk 0:01:32]}  Bh6 {[%clk 0:00:49]} 32. c5 {[%clk 0:01:31]}  Bxd2 {[%clk 0:00:18]} 33. Kxd2 {[%clk 0:01:30]}  Nc4+ {[%clk 0:00:18]} 34. Kc3 {[%clk 0:01:30]}  Kd5 {[%clk 0:00:19]} 35. c6 {[%clk 0:01:23]}  Nd6 {[%clk 0:00:08]} 36. b5 {[%clk 0:01:21]}  a6 {[%clk 0:00:08]} 37. Kb4 {[%clk 0:01:20]}  axb5 {[%clk 0:00:08]} 38. axb5 {[%clk 0:01:20]}  Nc8 {[%clk 0:00:09]} 39. Be3 {[%clk 0:01:18]}  Ke5 {[%clk 0:00:09]} 40. h3 {[%clk 0:01:15]}  Kd5 {[%clk 0:00:09]} 41. Kb3 {[%clk 0:01:12]}  Ke6 {[%clk 0:00:08]} 42. Kc4 {[%clk 0:01:12]}  Ke5 {[%clk 0:00:08]} 43. Bf4+ {[%clk 0:01:12]}  Ke6 {[%clk 0:00:08]} 44. Kd4 {[%clk 0:01:12]}  Na7 {[%clk 0:00:08]} 45. Kc4 {[%clk 0:01:08]}  Nc8 {[%clk 0:00:08]} 46. Bb8 {[%clk 0:01:08]}  Kf5 {[%clk 0:00:07]} 47. Kd4 {[%clk 0:01:06]}  Ke6 {[%clk 0:00:06]} 48. Kxe4 {[%clk 0:01:06]}  Ke7 {[%clk 0:00:06]} 49. Ke5 {[%clk 0:01:06]}  Kf7 {[%clk 0:00:07]} 50. Kd5 {[%clk 0:01:00]}  Ke7 {[%clk 0:00:08]} 51. Bc7 {[%clk 0:00:58]}  Kf7 {[%clk 0:00:08]} 52. Bd8 {[%clk 0:00:59]}  Ke8 {[%clk 0:00:08]} 53. Bg5 {[%clk 0:00:59]}  Kf7 {[%clk 0:00:08]} 54. c7 {[%clk 0:00:52]}  Na7 {[%clk 0:00:08]} 55. Be3 {[%clk 0:00:50]}  Ke7 {[%clk 0:00:07]} 56. Bxb6 {[%clk 0:00:51]}  Nxb5 {[%clk 0:00:06]} 57. c8=Q {[%clk 0:00:50]} 1-0


[Site "https://www.chess.com"]

[Event "Titled Tuesday Blitz March 07 Early 2023"]
[White "Narayanan, Srinath"]
[Black "Petukhov, Dmitry"]
[WhiteFideId "5018420"]
[BlackFideId "4142748"]
[WhiteElo "2438"]
[BlackElo "2311"]
[Result "1/2-1/2"]
[Round "07"]
[TimeControl "180+2"]
[Date "2023.03.07"]
[WhiteClock "0:00:15"]
[BlackClock "0:00:08"]

1. Nf3 {[%clk 0:03:00]}  Nf6 {[%clk 0:02:59]} 2. c4 {[%clk 0:03:00]}  g6 {[%clk 0:03:00]} 3. b3 {[%clk 0:02:59]}  Bg7 {[%clk 0:02:54]} 4. Bb2 {[%clk 0:03:00]}  O-O {[%clk 0:02:54]} 5. g3 {[%clk 0:03:00]}  d6 {[%clk 0:02:53]} 6. Bg2 {[%clk 0:03:01]}  e5 {[%clk 0:02:51]} 7. O-O {[%clk 0:03:02]}  Nc6 {[%clk 0:02:47]} 8. Nc3 {[%clk 0:03:02]}  Bf5 {[%clk 0:02:35]} 9. d3 {[%clk 0:03:01]}  Qd7 {[%clk 0:02:35]} 10. Nd5 {[%clk 0:02:58]}  Nxd5 {[%clk 0:02:29]} 11. cxd5 {[%clk 0:02:59]}  Ne7 {[%clk 0:02:30]} 12. e4 {[%clk 0:02:59]}  Bh3 {[%clk 0:02:23]} 13. Rc1 {[%clk 0:02:59]}  Bxg2 {[%clk 0:02:21]} 14. Kxg2 {[%clk 0:03:00]}  h6 {[%clk 0:02:21]} 15. Rc4 {[%clk 0:02:58]}  f5 {[%clk 0:02:15]} 16. Qc2 {[%clk 0:02:57]}  Rac8 {[%clk 0:02:13]} 17. Rc1 {[%clk 0:02:57]}  c6 {[%clk 0:02:13]} 18. dxc6 {[%clk 0:02:22]}  bxc6 {[%clk 0:02:14]} 19. Nd2 {[%clk 0:02:11]}  d5 {[%clk 0:02:07]} 20. Rc5 {[%clk 0:02:07]}  fxe4 {[%clk 0:01:52]} 21. dxe4 {[%clk 0:02:08]}  Rf7 {[%clk 0:01:39]} 22. Rf1 {[%clk 0:01:16]}  Rcf8 {[%clk 0:01:38]} 23. Ba3 {[%clk 0:01:13]}  h5 {[%clk 0:01:32]} 24. Rc3 {[%clk 0:01:09]}  Bh6 {[%clk 0:01:19]} 25. Bxe7 {[%clk 0:01:06]}  Rxe7 {[%clk 0:01:19]} 26. exd5 {[%clk 0:00:53]}  cxd5 {[%clk 0:01:06]} 27. Qxg6+ {[%clk 0:00:51]}  Bg7 {[%clk 0:01:06]} 28. Nf3 {[%clk 0:00:42]}  Re6 {[%clk 0:00:46]} 29. Qg5 {[%clk 0:00:39]}  e4 {[%clk 0:00:42]} 30. Nd4 {[%clk 0:00:26]}  Re5 {[%clk 0:00:36]} 31. Qe3 {[%clk 0:00:26]}  h4 {[%clk 0:00:35]} 32. Rfc1 {[%clk 0:00:21]}  hxg3 {[%clk 0:00:34]} 33. fxg3 {[%clk 0:00:18]}  Rh5 {[%clk 0:00:34]} 34. h4 {[%clk 0:00:18]}  Qg4 {[%clk 0:00:29]} 35. Rh1 {[%clk 0:00:13]}  Bxd4 {[%clk 0:00:19]} 36. Qxd4 {[%clk 0:00:14]}  Rhf5 {[%clk 0:00:20]} 37. Rc2 {[%clk 0:00:09]}  Rf3 {[%clk 0:00:17]} 38. Qxd5+ {[%clk 0:00:09]}  R8f7 {[%clk 0:00:18]} 39. Qg5+ {[%clk 0:00:06]}  Qxg5 {[%clk 0:00:17]} 40. hxg5 {[%clk 0:00:07]}  e3 {[%clk 0:00:17]} 41. Re1 {[%clk 0:00:06]}  Rf2+ {[%clk 0:00:17]} 42. Rxf2 {[%clk 0:00:06]}  Rxf2+ {[%clk 0:00:18]} 43. Kh3 {[%clk 0:00:07]}  Rxa2 {[%clk 0:00:19]} 44. Rxe3 {[%clk 0:00:08]}  Ra3 {[%clk 0:00:18]} 45. Kg4 {[%clk 0:00:06]}  a5 {[%clk 0:00:18]} 46. Rf3 {[%clk 0:00:07]}  Kg7 {[%clk 0:00:18]} 47. Kh5 {[%clk 0:00:07]}  a4 {[%clk 0:00:16]} 48. g6 {[%clk 0:00:07]}  Rxb3 {[%clk 0:00:15]} 49. Rf7+ {[%clk 0:00:08]}  Kg8 {[%clk 0:00:16]} 50. g4 {[%clk 0:00:08]}  a3 {[%clk 0:00:12]} 51. Ra7 {[%clk 0:00:08]}  Rh3+ {[%clk 0:00:08]} 52. Kg5 {[%clk 0:00:09]}  Rb3 {[%clk 0:00:09]} 53. Kf5 {[%clk 0:00:08]}  Rf3+ {[%clk 0:00:09]} 54. Ke5 {[%clk 0:00:07]}  Rb3 {[%clk 0:00:10]} 55. Kf6 {[%clk 0:00:07]}  Rf3+ {[%clk 0:00:10]} 56. Kg5 {[%clk 0:00:08]}  Rb3 {[%clk 0:00:11]} 57. Ra4 {[%clk 0:00:09]}  Rc3 {[%clk 0:00:09]} 58. Kf5 {[%clk 0:00:08]}  Rf3+ {[%clk 0:00:09]} 59. Ke4 {[%clk 0:00:08]}  Rg3 {[%clk 0:00:08]} 60. Kf4 {[%clk 0:00:07]}  Rb3 {[%clk 0:00:08]} 61. Kg5 {[%clk 0:00:07]}  Rc3 {[%clk 0:00:08]} 62. Ra6 {[%clk 0:00:07]}  Rb3 {[%clk 0:00:08]} 63. Ra5 {[%clk 0:00:07]}  Rc3 {[%clk 0:00:08]} 64. Kh6 {[%clk 0:00:07]}  Rh3+ {[%clk 0:00:09]} 65. Kg5 {[%clk 0:00:08]}  Rb3 {[%clk 0:00:09]} 66. Kf4 {[%clk 0:00:08]}  Rc3 {[%clk 0:00:09]} 67. g5 {[%clk 0:00:08]}  Rb3 {[%clk 0:00:08]} 68. Kf5 {[%clk 0:00:07]}  Rf3+ {[%clk 0:00:08]} 69. Ke4 {[%clk 0:00:07]}  Rb3 {[%clk 0:00:09]} 70. Kd4 {[%clk 0:00:08]}  Rg3 {[%clk 0:00:07]} 71. Ke4 {[%clk 0:00:05]}  Kg7 {[%clk 0:00:07]} 72. Kf5 {[%clk 0:00:05]}  Rf3+ {[%clk 0:00:07]} 73. Kg4 {[%clk 0:00:05]}  Rb3 {[%clk 0:00:07]} 74. Ra6 {[%clk 0:00:06]}  Rc3 {[%clk 0:00:07]} 75. Kf4 {[%clk 0:00:06]}  Rb3 {[%clk 0:00:07]} 76. Ke4 {[%clk 0:00:06]}  Rc3 {[%clk 0:00:07]} 77. Kf5 {[%clk 0:00:07]}  Rf3+ {[%clk 0:00:07]} 78. Ke5 {[%clk 0:00:07]}  Re3+ {[%clk 0:00:07]} 79. Kd4 {[%clk 0:00:08]}  Rg3 {[%clk 0:00:07]} 80. Ke4 {[%clk 0:00:08]}  Rxg5 {[%clk 0:00:07]} 81. Rxa3 {[%clk 0:00:08]}  Rxg6 {[%clk 0:00:08]} 82. Kf5 {[%clk 0:00:09]}  Rf6+ {[%clk 0:00:08]} 83. Ke5 {[%clk 0:00:09]}  Rg6 {[%clk 0:00:08]} 84. Rf3 {[%clk 0:00:09]}  Rg5+ {[%clk 0:00:08]} 85. Ke6 {[%clk 0:00:10]}  Rg4 {[%clk 0:00:08]} 86. Kf5 {[%clk 0:00:09]}  Rg6 {[%clk 0:00:08]} 87. Ke5 {[%clk 0:00:09]}  Rg5+ {[%clk 0:00:08]} 88. Ke6 {[%clk 0:00:09]}  Rg6+ {[%clk 0:00:08]} 89. Ke7 {[%clk 0:00:10]}  Rg4 {[%clk 0:00:07]} 90. Re3 {[%clk 0:00:10]}  Rg5 {[%clk 0:00:07]} 91. Re6 {[%clk 0:00:10]}  Rg6 {[%clk 0:00:07]} 92. Re1 {[%clk 0:00:10]}  Rg5 {[%clk 0:00:07]} 93. Ke6 {[%clk 0:00:10]}  Rg6+ {[%clk 0:00:07]} 94. Ke5 {[%clk 0:00:11]}  Rg5+ {[%clk 0:00:07]} 95. Kf4 {[%clk 0:00:11]}  Rg6 {[%clk 0:00:08]} 96. Re7+ {[%clk 0:00:11]}  Kf6 {[%clk 0:00:07]} 97. Ra7 {[%clk 0:00:12]}  Rg7 {[%clk 0:00:07]} 98. Ra6+ {[%clk 0:00:12]}  Kf7 {[%clk 0:00:07]} 99. Kf5 {[%clk 0:00:13]}  Kg8 {[%clk 0:00:06]} 100. Ra8+ {[%clk 0:00:11]}  Kh7 {[%clk 0:00:06]} 101. Kf6 {[%clk 0:00:12]}  Rb7 {[%clk 0:00:05]} 102. Ra6 {[%clk 0:00:11]}  Rc7 {[%clk 0:00:05]} 103. Re6 {[%clk 0:00:10]}  Rb7 {[%clk 0:00:05]} 104. Re2 {[%clk 0:00:09]}  Rb6+ {[%clk 0:00:05]} 105. Kg5 {[%clk 0:00:09]}  Rb5+ {[%clk 0:00:06]} 106. Kg4 {[%clk 0:00:09]}  Rb4+ {[%clk 0:00:06]} 107. Kf5 {[%clk 0:00:09]}  Rb5+ {[%clk 0:00:06]} 108. Kf4 {[%clk 0:00:10]}  Rb4+ {[%clk 0:00:06]} 109. Kg3 {[%clk 0:00:11]}  Rb3+ {[%clk 0:00:06]} 110. Kg2 {[%clk 0:00:11]}  Rb7 {[%clk 0:00:06]} 111. Re6 {[%clk 0:00:11]}  Rg7+ {[%clk 0:00:06]} 112. Kh3 {[%clk 0:00:11]}  Rb7 {[%clk 0:00:06]} 113. Kg4 {[%clk 0:00:11]}  Rb4+ {[%clk 0:00:07]} 114. Kg5 {[%clk 0:00:11]}  Rb5+ {[%clk 0:00:07]} 115. Kf6 {[%clk 0:00:12]}  Rb7 {[%clk 0:00:07]} 116. Rc6 {[%clk 0:00:12]}  Ra7 {[%clk 0:00:07]} 117. Rb6 {[%clk 0:00:13]}  Rc7 {[%clk 0:00:08]} 118. Kg5 {[%clk 0:00:13]}  Rc5+ {[%clk 0:00:07]} 119. Kf6 {[%clk 0:00:13]}  Rc7 {[%clk 0:00:08]} 120. Re6 {[%clk 0:00:13]}  Ra7 {[%clk 0:00:08]} 121. Re1 {[%clk 0:00:13]}  Ra6+ {[%clk 0:00:08]} 122. Kf7 {[%clk 0:00:13]}  Ra7+ {[%clk 0:00:08]} 123. Re7 {[%clk 0:00:14]}  Rxe7+ {[%clk 0:00:08]} 124. Kxe7 {[%clk 0:00:15]} 1/2-1/2


[Site "https://www.chess.com"]

[Event "Titled Tuesday Blitz March 07 Early 2023"]
[White "Corrales Jimenez, Fidel"]
[Black "Walentukiewicz, Michal"]
[WhiteFideId "3506690"]
[BlackFideId "1126903"]
[WhiteElo "2541"]
[BlackElo "2028"]
[Result "1-0"]
[Round "07"]
[TimeControl "180+2"]
[Date "2023.03.07"]
[WhiteClock "0:01:41"]
[BlackClock "0:01:57"]

1. e4 {[%clk 0:03:00]}  c5 {[%clk 0:02:59]} 2. Nf3 {[%clk 0:03:00]}  g6 {[%clk 0:02:59]} 3. d4 {[%clk 0:03:01]}  Bg7 {[%clk 0:02:58]} 4. dxc5 {[%clk 0:03:00]}  Qa5+ {[%clk 0:02:57]} 5. c3 {[%clk 0:03:01]}  Qxc5 {[%clk 0:02:57]} 6. Na3 {[%clk 0:03:01]}  d6 {[%clk 0:02:43]} 7. Nb5 {[%clk 0:03:00]}  Qc6 {[%clk 0:02:40]} 8. Nfd4 {[%clk 0:02:56]}  Qd7 {[%clk 0:02:35]} 9. Qa4 {[%clk 0:02:55]}  Nc6 {[%clk 0:02:32]} 10. Bc4 {[%clk 0:02:31]}  Nf6 {[%clk 0:02:28]} 11. O-O {[%clk 0:02:09]}  O-O {[%clk 0:02:24]} 12. Re1 {[%clk 0:02:07]}  a6 {[%clk 0:02:20]} 13. Bb3 {[%clk 0:01:52]}  e5 {[%clk 0:02:06]} 14. Nc2 {[%clk 0:01:48]}  Rb8 {[%clk 0:02:01]} 15. c4 {[%clk 0:01:40]}  axb5 {[%clk 0:01:57]} 16. cxb5 {[%clk 0:01:41]} 1-0


[Site "https://www.chess.com"]

[Event "Titled Tuesday Blitz March 07 Early 2023"]
[White "Carlsen, Magnus"]
[Black "Skliarov, Viktor"]
[WhiteFideId "1503014"]
[BlackFideId "14106736"]
[WhiteElo "2852"]
[BlackElo "2289"]
[Result "1-0"]
[Round "07"]
[TimeControl "180+2"]
[Date "2023.03.07"]
[WhiteClock "0:01:56"]
[BlackClock "0:00:01"]

1. e4 {[%clk 0:03:00]}  c5 {[%clk 0:02:59]} 2. Nf3 {[%clk 0:02:44]}  Nc6 {[%clk 0:02:58]} 3. Bc4 {[%clk 0:02:43]}  g6 {[%clk 0:02:57]} 4. c3 {[%clk 0:02:42]}  Bg7 {[%clk 0:02:57]} 5. d4 {[%clk 0:02:36]}  cxd4 {[%clk 0:02:57]} 6. cxd4 {[%clk 0:02:37]}  d6 {[%clk 0:02:57]} 7. Qb3 {[%clk 0:02:34]}  Na5 {[%clk 0:02:30]} 8. Bb5+ {[%clk 0:02:25]}  Bd7 {[%clk 0:02:29]} 9. Qa4 {[%clk 0:02:22]}  Nc6 {[%clk 0:02:26]} 10. d5 {[%clk 0:02:22]}  Qa5+ {[%clk 0:02:12]} 11. Nc3 {[%clk 0:02:21]}  Qxa4 {[%clk 0:02:07]} 12. Bxa4 {[%clk 0:02:21]}  Nb4 {[%clk 0:02:04]} 13. Bxd7+ {[%clk 0:02:20]}  Kxd7 {[%clk 0:02:04]} 14. Ke2 {[%clk 0:02:21]}  Nc2 {[%clk 0:01:37]} 15. Rb1 {[%clk 0:02:21]}  Nd4+ {[%clk 0:01:38]} 16. Nxd4 {[%clk 0:02:20]}  Bxd4 {[%clk 0:01:39]} 17. Be3 {[%clk 0:02:21]}  Bxe3 {[%clk 0:01:31]} 18. Kxe3 {[%clk 0:02:22]}  Nf6 {[%clk 0:01:31]} 19. f3 {[%clk 0:02:20]}  Rhc8 {[%clk 0:01:30]} 20. Rhc1 {[%clk 0:02:21]}  Rc5 {[%clk 0:01:25]} 21. b4 {[%clk 0:02:20]}  Rc4 {[%clk 0:01:22]} 22. Nb5 {[%clk 0:02:19]}  Rxc1 {[%clk 0:01:17]} 23. Rxc1 {[%clk 0:02:20]}  Ne8 {[%clk 0:01:17]} 24. g4 {[%clk 0:02:18]}  a6 {[%clk 0:01:14]} 25. Nd4 {[%clk 0:02:17]}  Rc8 {[%clk 0:01:08]} 26. Rxc8 {[%clk 0:02:17]}  Kxc8 {[%clk 0:01:09]} 27. h4 {[%clk 0:02:17]}  h6 {[%clk 0:01:07]} 28. f4 {[%clk 0:02:17]}  Nf6 {[%clk 0:01:02]} 29. Kf3 {[%clk 0:02:17]}  h5 {[%clk 0:00:55]} 30. gxh5 {[%clk 0:02:15]}  gxh5 {[%clk 0:00:51]} 31. a4 {[%clk 0:02:11]}  Kd7 {[%clk 0:00:48]} 32. a5 {[%clk 0:02:11]}  Ng4 {[%clk 0:00:35]} 33. Nf5 {[%clk 0:02:10]}  Nf6 {[%clk 0:00:35]} 34. Ng3 {[%clk 0:02:09]}  e6 {[%clk 0:00:28]} 35. dxe6+ {[%clk 0:02:03]}  fxe6 {[%clk 0:00:26]} 36. e5 {[%clk 0:02:04]}  dxe5 {[%clk 0:00:21]} 37. fxe5 {[%clk 0:02:05]}  Nd5 {[%clk 0:00:20]} 38. Nxh5 {[%clk 0:02:05]}  Nxb4 {[%clk 0:00:21]} 39. Nf6+ {[%clk 0:02:05]}  Ke7 {[%clk 0:00:21]} 40. h5 {[%clk 0:02:00]}  Kf7 {[%clk 0:00:19]} 41. Ne4 {[%clk 0:01:59]}  Nc6 {[%clk 0:00:16]} 42. Kf4 {[%clk 0:01:59]}  Nxa5 {[%clk 0:00:15]} 43. Ng5+ {[%clk 0:01:58]}  Kg7 {[%clk 0:00:12]} 44. Nxe6+ {[%clk 0:01:55]}  Kh6 {[%clk 0:00:12]} 45. Nd4 {[%clk 0:01:56]}  Kxh5 {[%clk 0:00:09]} 46. Kf5 {[%clk 0:01:56]}  Nc4 {[%clk 0:00:09]} 47. e6 {[%clk 0:01:56]}  a5 {[%clk 0:00:06]} 48. e7 {[%clk 0:01:55]}  Nd6+ {[%clk 0:00:06]} 49. Ke6 {[%clk 0:01:56]}  Ne8 {[%clk 0:00:06]} 50. Kf7 {[%clk 0:01:56]}  Nd6+ {[%clk 0:00:06]} 51. Kf8 {[%clk 0:01:56]}  a4 {[%clk 0:00:01]} 52. Nb5 {[%clk 0:01:56]}  Nxb5 {[%clk 0:00:01]} 53. e8=Q+ {[%clk 0:01:56]} 1-0


[Site "https://www.chess.com"]

[Event "Titled Tuesday Blitz March 07 Early 2023"]
[White "Yuan, Qingyu"]
[Black "Kozak, Antoni"]
[WhiteFideId "8609772"]
[BlackFideId "21832030"]
[WhiteElo "2359"]
[BlackElo "2470"]
[Result "1-0"]
[Round "07"]
[TimeControl "180+2"]
[Date "2023.03.07"]
[WhiteClock "0:00:04"]
[BlackClock "0:00:01"]

1. e4 {[%clk 0:03:00]}  c6 {[%clk 0:02:56]} 2. d4 {[%clk 0:03:00]}  d5 {[%clk 0:02:56]} 3. exd5 {[%clk 0:03:01]}  cxd5 {[%clk 0:02:57]} 4. Bd3 {[%clk 0:03:02]}  Nc6 {[%clk 0:02:50]} 5. c3 {[%clk 0:03:02]}  Nf6 {[%clk 0:02:47]} 6. h3 {[%clk 0:03:02]}  g6 {[%clk 0:02:40]} 7. Nf3 {[%clk 0:03:01]}  Bf5 {[%clk 0:02:40]} 8. O-O {[%clk 0:03:01]}  e6 {[%clk 0:02:37]} 9. Bf4 {[%clk 0:03:00]}  Bd6 {[%clk 0:02:35]} 10. Bxd6 {[%clk 0:02:59]}  Qxd6 {[%clk 0:02:35]} 11. Re1 {[%clk 0:03:00]}  Qc7 {[%clk 0:02:16]} 12. Qe2 {[%clk 0:02:55]}  O-O {[%clk 0:02:05]} 13. Nbd2 {[%clk 0:02:53]}  Bxd3 {[%clk 0:02:01]} 14. Qxd3 {[%clk 0:02:54]}  Rab8 {[%clk 0:01:38]} 15. a4 {[%clk 0:02:45]}  Rfc8 {[%clk 0:01:37]} 16. Nb3 {[%clk 0:02:30]}  Ne4 {[%clk 0:01:29]} 17. Nfd2 {[%clk 0:02:29]}  Nd6 {[%clk 0:01:22]} 18. Nc5 {[%clk 0:02:13]}  Na5 {[%clk 0:01:07]} 19. Re2 {[%clk 0:01:29]}  Qc6 {[%clk 0:01:01]} 20. Nf3 {[%clk 0:01:08]}  b6 {[%clk 0:00:49]} 21. Na6 {[%clk 0:00:41]}  Rb7 {[%clk 0:00:48]} 22. Ne5 {[%clk 0:00:39]}  Qe8 {[%clk 0:00:47]} 23. Rae1 {[%clk 0:00:38]}  Qxa4 {[%clk 0:00:39]} 24. Ng4 {[%clk 0:00:33]}  Qb5 {[%clk 0:00:33]} 25. Qxb5 {[%clk 0:00:27]}  Nxb5 {[%clk 0:00:33]} 26. Ne5 {[%clk 0:00:25]}  Nd6 {[%clk 0:00:30]} 27. Nd3 {[%clk 0:00:23]}  Nc6 {[%clk 0:00:29]} 28. g3 {[%clk 0:00:21]}  Nb8 {[%clk 0:00:26]} 29. Ra1 {[%clk 0:00:19]}  Nxa6 {[%clk 0:00:22]} 30. Rxa6 {[%clk 0:00:20]}  Nb5 {[%clk 0:00:23]} 31. Re1 {[%clk 0:00:20]}  Nc7 {[%clk 0:00:23]} 32. Ra4 {[%clk 0:00:20]}  a5 {[%clk 0:00:23]} 33. Rea1 {[%clk 0:00:19]}  Nb5 {[%clk 0:00:22]} 34. Kg2 {[%clk 0:00:19]}  Kf8 {[%clk 0:00:20]} 35. h4 {[%clk 0:00:19]}  h5 {[%clk 0:00:20]} 36. Ne5 {[%clk 0:00:18]}  Ke7 {[%clk 0:00:20]} 37. Re1 {[%clk 0:00:19]}  Nd6 {[%clk 0:00:19]} 38. Ra2 {[%clk 0:00:17]}  Nc4 {[%clk 0:00:19]} 39. Nd3 {[%clk 0:00:18]}  Kd6 {[%clk 0:00:19]} 40. Re2 {[%clk 0:00:17]}  Ke7 {[%clk 0:00:18]} 41. Re1 {[%clk 0:00:17]}  Rbc7 {[%clk 0:00:17]} 42. Nf4 {[%clk 0:00:17]}  Kd7 {[%clk 0:00:16]} 43. Re2 {[%clk 0:00:17]}  Ra7 {[%clk 0:00:15]} 44. Nd3 {[%clk 0:00:17]}  Rca8 {[%clk 0:00:15]} 45. Re1 {[%clk 0:00:17]}  Nd6 {[%clk 0:00:14]} 46. Ne5+ {[%clk 0:00:17]}  Kc7 {[%clk 0:00:15]} 47. Rea1 {[%clk 0:00:17]}  a4 {[%clk 0:00:15]} 48. Ra3 {[%clk 0:00:14]}  Ra5 {[%clk 0:00:15]} 49. R3a2 {[%clk 0:00:14]}  Nc4 {[%clk 0:00:15]} 50. Nxf7 {[%clk 0:00:09]}  a3 {[%clk 0:00:11]} 51. b3 {[%clk 0:00:09]}  Nd6 {[%clk 0:00:09]} 52. Ne5 {[%clk 0:00:09]}  Nb5 {[%clk 0:00:07]} 53. Nxg6 {[%clk 0:00:08]}  Kd6 {[%clk 0:00:06]} 54. Rc1 {[%clk 0:00:08]}  Rc8 {[%clk 0:00:06]} 55. c4 {[%clk 0:00:07]}  Nxd4 {[%clk 0:00:05]} 56. Rd1 {[%clk 0:00:04]}  Nxb3 {[%clk 0:00:04]} 57. cxd5 {[%clk 0:00:04]}  Rxd5 {[%clk 0:00:04]} 58. Rxd5+ {[%clk 0:00:04]}  exd5 {[%clk 0:00:05]} 59. Rxa3 {[%clk 0:00:04]}  Na5 {[%clk 0:00:05]} 60. Nf4 {[%clk 0:00:05]}  d4 {[%clk 0:00:05]} 61. Nxh5 {[%clk 0:00:04]}  Rc3 {[%clk 0:00:05]} 62. Ra2 {[%clk 0:00:04]}  Nc4 {[%clk 0:00:01]} 63. Nf4 {[%clk 0:00:04]}  b5 {[%clk 0:00:01]} 64. h5 {[%clk 0:00:05]}  b4 {[%clk 0:00:02]} 65. h6 {[%clk 0:00:05]}  b3 {[%clk 0:00:02]} 66. Ra6+ {[%clk 0:00:04]}  Ke5 {[%clk 0:00:02]} 67. h7 {[%clk 0:00:04]}  Ne3+ {[%clk 0:00:02]} 68. fxe3 {[%clk 0:00:05]}  Rc8 {[%clk 0:00:03]} 69. h8=Q+ {[%clk 0:00:04]}  Rxh8 {[%clk 0:00:02]} 70. Ng6+ {[%clk 0:00:05]}  Ke4 {[%clk 0:00:02]} 71. Nxh8 {[%clk 0:00:04]}  d3 {[%clk 0:00:01]} 72. Kf2 {[%clk 0:00:03]}  d2 {[%clk 0:00:01]} 73. Ke2 {[%clk 0:00:04]}  b2 {[%clk 0:00:01]} 74. Rb6 {[%clk 0:00:04]} 1-0


[Site "https://www.chess.com"]

[Event "Titled Tuesday Blitz March 07 Early 2023"]
[White "Manelyuk, Daniil"]
[Black "Movahed, Sina"]
[WhiteFideId "44173920"]
[BlackFideId "42520835"]
[WhiteElo "2259"]
[BlackElo "2225"]
[Result "0-1"]
[Round "07"]
[TimeControl "180+2"]
[Date "2023.03.07"]
[WhiteClock "0:00:09"]
[BlackClock "0:00:33"]

1. e4 {[%clk 0:03:00]}  c5 {[%clk 0:02:59]} 2. Nf3 {[%clk 0:03:00]}  d6 {[%clk 0:02:59]} 3. d4 {[%clk 0:03:01]}  cxd4 {[%clk 0:03:00]} 4. Nxd4 {[%clk 0:03:01]}  Nf6 {[%clk 0:03:01]} 5. Nc3 {[%clk 0:03:01]}  a6 {[%clk 0:03:01]} 6. f3 {[%clk 0:03:02]}  e5 {[%clk 0:03:00]} 7. Nb3 {[%clk 0:03:02]}  Be7 {[%clk 0:03:00]} 8. Be3 {[%clk 0:03:02]}  b5 {[%clk 0:02:59]} 9. Qd2 {[%clk 0:03:01]}  Be6 {[%clk 0:02:59]} 10. g4 {[%clk 0:02:59]}  d5 {[%clk 0:02:54]} 11. g5 {[%clk 0:02:45]}  d4 {[%clk 0:02:53]} 12. gxf6 {[%clk 0:02:42]}  Bxf6 {[%clk 0:02:51]} 13. O-O-O {[%clk 0:02:33]}  Nc6 {[%clk 0:02:33]} 14. Nc5 {[%clk 0:02:09]}  dxe3 {[%clk 0:02:21]} 15. Qxe3 {[%clk 0:01:52]}  Qe7 {[%clk 0:02:20]} 16. Nxe6 {[%clk 0:01:46]}  fxe6 {[%clk 0:02:21]} 17. Kb1 {[%clk 0:01:41]}  O-O {[%clk 0:02:20]} 18. Ne2 {[%clk 0:01:35]}  Rad8 {[%clk 0:02:09]} 19. Bh3 {[%clk 0:01:33]}  Kh8 {[%clk 0:01:58]} 20. Qb6 {[%clk 0:01:30]}  Rd6 {[%clk 0:01:48]} 21. Rxd6 {[%clk 0:01:24]}  Qxd6 {[%clk 0:01:49]} 22. Qxa6 {[%clk 0:01:24]}  Qc5 {[%clk 0:01:44]} 23. Nc3 {[%clk 0:01:06]}  Nd4 {[%clk 0:01:39]} 24. a3 {[%clk 0:00:42]}  b4 {[%clk 0:01:36]} 25. axb4 {[%clk 0:00:42]}  Qxb4 {[%clk 0:01:37]} 26. Qa4 {[%clk 0:00:42]}  Qb6 {[%clk 0:01:33]} 27. Rd1 {[%clk 0:00:37]}  Rb8 {[%clk 0:01:33]} 28. b3 {[%clk 0:00:37]}  Qc5 {[%clk 0:01:27]} 29. Rd3 {[%clk 0:00:33]}  h6 {[%clk 0:01:21]} 30. Qd7 {[%clk 0:00:29]}  Qc4 {[%clk 0:01:14]} 31. Qe8+ {[%clk 0:00:20]}  Rxe8 {[%clk 0:01:14]} 32. bxc4 {[%clk 0:00:21]}  Rc8 {[%clk 0:00:48]} 33. Nb5 {[%clk 0:00:21]}  Rc6 {[%clk 0:00:44]} 34. Nxd4 {[%clk 0:00:15]}  exd4 {[%clk 0:00:45]} 35. f4 {[%clk 0:00:14]}  e5 {[%clk 0:00:44]} 36. fxe5 {[%clk 0:00:14]}  Bxe5 {[%clk 0:00:45]} 37. Bf5 {[%clk 0:00:13]}  g6 {[%clk 0:00:45]} 38. Bd7 {[%clk 0:00:12]}  Rxc4 {[%clk 0:00:45]} 39. Rb3 {[%clk 0:00:13]}  Kg7 {[%clk 0:00:44]} 40. Be6 {[%clk 0:00:13]}  Rc7 {[%clk 0:00:43]} 41. h3 {[%clk 0:00:13]}  Kf6 {[%clk 0:00:42]} 42. Bd5 {[%clk 0:00:13]}  Kg5 {[%clk 0:00:43]} 43. Rb6 {[%clk 0:00:13]}  Re7 {[%clk 0:00:42]} 44. Kc1 {[%clk 0:00:12]}  h5 {[%clk 0:00:41]} 45. Kd2 {[%clk 0:00:12]}  Rg7 {[%clk 0:00:40]} 46. Re6 {[%clk 0:00:11]}  Kf4 {[%clk 0:00:41]} 47. Kd3 {[%clk 0:00:11]}  g5 {[%clk 0:00:41]} 48. Rh6 {[%clk 0:00:11]}  h4 {[%clk 0:00:35]} 49. Rh8 {[%clk 0:00:10]}  Rc7 {[%clk 0:00:33]} 50. Rf8+ {[%clk 0:00:09]}  Kg3 {[%clk 0:00:33]} 51. Be6 {[%clk 0:00:10]}  Rc3+ {[%clk 0:00:33]} 52. Kd2 {[%clk 0:00:10]}  Bf4+ {[%clk 0:00:33]} 53. Kd1 {[%clk 0:00:10]}  Re3 {[%clk 0:00:33]} 54. Bf5 {[%clk 0:00:10]}  Kf2 {[%clk 0:00:33]} 55. Rg8 {[%clk 0:00:09]}  Re1# {[%clk 0:00:33]} 0-1


[Site "https://www.chess.com"]